bitfinex/quotes_ETHUSD_20240530
["timestamp","ask_amount","ask_price","bid_price","bid_amount"]
[1717074338084,2.65264,3769.9,3768.4,0.23789354]
[1717074338085,3.57406824,3769.8,3768.8,2.4513]
[1717074338370,3.57406824,3769.8,3768.9,0.07237868]
[1717074338371,3.0,3769.8,3768.9,0.07237868]
[1717074338561,0.758264,3769.7,3768.9,0.07237868]
[1717074338957,0.758264,3769.7,3769.1,2.65314]
[1717074339363,0.758264,3769.7,3769.2,0.07219086]
[1717074339561,4.5828,3769.6,3769.2,0.07219086]
[1717074339923,2.65298,3769.4,3768.6,7.38]
[1717074340152,2.65282,3769.6,3768.6,10.03349]
[1717074341035,4.93,3769.8,3768.9,2.65325]
[1717074341370,1.93,3769.8,3769.0,0.07226208]
[1717074343168,0.57400931,3769.7,3769.0,0.07226208]
[1717074343387,2.65281,3769.6,3769.0,0.07226208]
[1717074343666,1.93,3769.8,3768.8,2.65329]
[1717074343971,1.93,3769.8,3768.9,0.07219406]
[1717074344930,2.65256,3770.0,3769.1,2.65314]
[1717074345171,0.57399815,3769.9,3769.1,2.65314]
[1717074345459,0.57399815,3769.9,3769.2,0.07208723]
[1717074345659,2.65256,3770.0,3769.2,0.07208723]
[1717074352340,3.110816,3770.0,3769.2,0.07208723]
[1717074358278,2.65275,3769.7,3769.2,0.07208723]
[1717074358477,5.88064222,3769.7,3769.0,2.2984]
[1717074358788,5.88064222,3769.7,3769.1,0.07176253]
[1717074358789,2.65291,3769.5,3769.1,0.07176253]
[1717074358990,2.65301,3769.3,3769.1,0.07176253]
[1717074359150,0.04040061,3769.2,3768.5,2.3423]
[1717074359350,3.95090222,3769.3,3769.2,0.07167745]
[1717074359351,2.65301,3769.3,3769.2,0.07167745]
[1717074359596,2.65301,3769.3,3768.5,2.3423]
[1717074359958,2.65301,3769.3,3768.6,0.07193061]
[1717074360701,3.00405053,3769.3,3768.6,0.07193061]
[1717074363183,2.65316,3769.1,3768.6,0.07193061]
[1717074364833,2.65292,3769.5,3768.6,0.07193061]
[1717074365028,0.57406733,3769.4,3768.6,0.07193061]
[1717074365590,0.57406733,3769.4,3768.7,2.65338]
[1717074365959,0.57406733,3769.8,3768.8,0.50676106]
[1717074366109,0.57406733,3769.8,3768.8,0.07191613]
[1717074366293,0.57406733,3769.8,3768.9,2.65328]
[1717074366501,0.57406733,3769.8,3769.0,0.0718449]
[1717074373844,0.57406733,3769.8,3769.1,2.65315]
[1717074374045,0.57406733,3769.8,3769.4,2.65291]
[1717074374342,0.57406733,3769.8,3769.2,0.07167498]
[1717074374343,2.65216,3770.5,3769.6,2.65279]
[1717074374599,0.57406733,3770.4,3769.7,0.07148216]
[1717074375745,2.65216,3770.5,3769.7,0.07148216]
[1717074379891,4.58216,3770.5,3769.7,0.07148216]
[1717074387394,4.58216,3770.5,3769.8,2.65264]
[1717074387596,2.65216,3770.5,3769.8,2.65264]
[1717074387893,2.65216,3770.5,3769.9,0.07122597]
[1717074388193,3.27529301,3770.5,3769.7,2.65266]
[1717074388496,0.804,3770.1,3770.0,0.07119037]
[1717074389093,2.65196,3770.8,3770.0,2.3958]
[1717074389300,0.804,3770.5,3770.0,2.46699037]
[1717074389755,0.804,3770.5,3770.1,2.65241]
[1717074389953,0.804,3770.5,3770.2,0.58303457]
[1717074391585,2.65196,3770.8,3770.2,0.58303457]
[1717074391802,0.804,3770.3,3770.2,0.07109453]
[1717074392203,2.65196,3770.8,3770.2,0.07109453]
[1717074394168,1.928,3771.0,3770.2,0.07109453]
[1717074394770,1.928,3771.0,3770.1,2.65241]
[1717074395078,0.57382209,3771.1,3770.1,2.65241]
[1717074395264,0.57382209,3771.1,3770.3,2.65229]
[1717074395479,0.57382209,3771.1,3770.5,2.65209]
[1717074395706,0.57382209,3771.4,3770.5,2.65209]
[1717074395868,0.57382209,3771.4,3770.6,0.07070557]
[1717074396265,0.51532921,3771.4,3770.6,0.07070557]
[1717074396465,1.08907158,3771.4,3770.6,0.07070557]
[1717074397211,1.928,3771.3,3770.6,0.07070557]
[1717074398420,2.65147,3771.5,3770.8,2.4417]
[1717074398613,1.928,3771.7,3770.8,2.4417]
[1717074398769,1.928,3771.7,3770.9,2.72236268]
[1717074398770,0.57370957,3771.6,3770.9,2.72236268]
[1717074399282,2.65124,3771.9,3770.9,2.72236268]
[1717074399489,0.57369383,3771.8,3770.9,2.72236268]
[1717074399813,2.65124,3771.9,3770.9,2.72236268]
[1717074400622,2.65124,3771.9,3771.2,2.65167]
[1717074400994,2.65124,3771.9,3771.3,0.07029629]
[1717074401396,2.3543,3773.3,3771.7,2.3811]
[1717074401703,2.65066,3772.7,3771.9,2.65117]
[1717074402111,2.65066,3772.7,3772.0,0.07001039]
[1717074403229,2.65076,3772.5,3772.0,0.07001039]
[1717074403431,0.39486522,3772.4,3772.0,0.07001039]
[1717074403733,0.39486522,3772.4,3772.1,0.06981218]
[1717074403941,3.94879222,3772.3,3771.8,7.38]
[1717074404092,1.928,3771.9,3771.1,10.0317]
[1717074404714,2.65126,3771.8,3771.1,7.38]
[1717074404932,2.65148,3771.5,3771.1,7.38]
[1717074405330,0.457926,3771.8,3771.1,7.38]
[1717074408944,2.65137,3771.7,3771.1,7.38]
[1717074409512,2.65137,3771.7,3770.8,12.36]
[1717074415499,2.65137,3771.7,3770.7,10.03198]
[1717074415905,2.65137,3771.7,3770.9,2.65187]
[1717074416148,2.65137,3771.7,3771.0,0.07023041]
[1717074418748,2.65137,3771.7,3771.1,0.07018745]
[1717074418962,2.65137,3771.7,3770.7,7.38]
[1717074419129,2.65137,3771.7,3770.8,0.07029417]
[1717074419702,2.65154,3771.4,3770.8,0.07029417]
[1717074420416,2.65171,3771.2,3770.8,0.07029417]
[1717074420647,2.65181,3771.0,3770.8,0.07029417]
[1717074420850,2.65181,3771.0,3770.4,2.3683]
[1717074421161,2.65181,3771.0,3770.2,19.74]
[1717074421162,4.57981,3771.0,3770.2,19.74]
[1717074421341,4.57981,3771.0,3770.3,0.06923875]
[1717074425060,5.037791,3771.0,3770.3,0.06923875]
[1717074425276,2.65202,3770.8,3770.3,0.06923875]
[1717074425565,2.65202,3770.8,3770.2,7.38]
[1717074425775,2.65202,3770.8,3770.3,0.06701974]
[1717074425930,2.65202,3770.8,3770.2,7.38]
[1717074426286,1.56304622,3771.4,3770.3,3.45724974]
[1717074426287,2.65174,3771.1,3770.3,3.45724974]
[1717074426572,2.65153,3771.5,3770.5,2.65215]
[1717074426777,0.57376062,3771.4,3770.7,2.65195]
[1717074426917,0.57376062,3771.4,3770.8,0.06696263]
[1717074427122,2.65153,3771.5,3770.8,0.06696263]
[1717074427370,1.928,3771.8,3770.9,2.65188]
[1717074427573,1.928,3771.8,3771.0,0.06689148]
[1717074427574,0.57371552,3771.7,3771.0,0.06689148]
[1717074428678,2.65136,3771.7,3771.0,0.06689148]
[1717074429032,0.57371552,3771.6,3771.0,0.06689148]
[1717074429674,1.9276595,3771.5,3771.0,0.06689148]
[1717074435649,2.442933,3771.5,3771.0,0.06689148]
[1717074435994,2.50137502,3771.4,3771.0,0.06689148]
[1717074436195,1.9276595,3771.3,3771.0,0.06689148]
[1717074436898,1.9276595,3771.2,3771.0,0.06689148]
[1717074437048,1.9276595,3771.1,3771.0,0.06689148]
[1717074437245,1.9276595,3771.5,3771.0,0.06689148]
[1717074437481,1.9276595,3771.4,3771.0,0.06689148]
[1717074437666,1.9276595,3771.3,3771.0,0.06689148]
[1717074437880,1.9276595,3771.2,3771.0,0.06689148]
[1717074438062,1.9276595,3771.1,3771.0,0.06689148]
[1717074441670,1.9276595,3771.3,3771.0,4.13076085]
[1717074442001,2.061826,3774.4,3771.4,2.3375]
[1717074442002,2.6502,3773.3,3771.4,2.3375]
[1717074442168,2.6502,3773.3,3772.2,0.803]
[1717074442169,2.50064426,3773.2,3772.2,0.803]
[1717074442369,2.50064426,3773.1,3772.3,0.06619194]
[1717074442583,1.92710379,3773.0,3772.5,2.3264]
[1717074442794,1.92710379,3772.9,3772.7,0.803]
[1717074442956,1.92710379,3772.8,3772.7,0.803]
[1717074443153,1.92710379,3773.7,3772.9,2.65044]
[1717074443353,1.9267752,3773.6,3773.0,0.86894314]
[1717074443607,1.9267752,3773.5,3773.0,0.06594314]
[1717074443807,3.4529,3773.8,3773.0,0.06594314]
[1717074444115,1.92642543,3773.7,3773.0,0.06594314]
[1717074444324,0.53793254,3773.6,3773.0,0.06594314]
[1717074444809,2.6496,3774.2,3773.1,2.65033]
[1717074444990,3.22429154,3774.1,3773.1,2.65033]
[1717074445193,1.92639932,3774.0,3773.2,0.06548033]
[1717074446208,1.29789222,3774.1,3773.2,0.06548033]
[1717074446408,0.39474922,3774.0,3773.2,0.06548033]
[1717074446780,2.6496,3774.2,3773.3,2.65014]
[1717074447005,1.92645752,3774.1,3773.4,0.06540927]
[1717074447328,2.6496,3774.2,3773.4,0.06540927]
[1717074447531,1.925,3774.1,3773.4,0.06540927]
[1717074447826,1.925,3774.4,3773.6,2.64998]
[1717074448179,0.1925,3774.4,3773.7,0.06530269]
[1717074449486,0.1925,3774.4,3773.6,2.64998]
[1717074450596,2.64918,3774.8,3773.6,2.64998]
[1717074450851,2.64918,3774.8,3773.5,2.3829]
[1717074450852,2.64918,3774.8,3773.8,2.64979]
[1717074451349,2.64918,3774.8,3773.9,0.06493622]
[1717074452257,5.64871,3775.5,3774.1,2.64958]
[1717074452550,1.925,3775.4,3774.3,2.64947]
[1717074452703,2.723791,3775.4,3774.3,2.64947]
[1717074452903,2.723791,3775.4,3774.4,0.06396812]
[1717074453109,2.64871,3775.5,3774.5,2.64929]
[1717074453544,2.64871,3775.5,3774.6,0.0638971]
[1717074454156,4.57371,3775.5,3774.6,0.0638971]
[1717074455204,1.925,3775.1,3774.6,0.0638971]
[1717074455650,1.925,3775.1,3774.2,2.3448]
[1717074455844,1.925,3775.1,3774.7,0.06372627]
[1717074456008,1.925,3775.1,3774.2,2.3448]
[1717074456209,1.925,3775.1,3774.8,0.06369076]
[1717074456444,1.925,3775.1,3774.2,2.3448]
[1717074456630,1.925,3775.1,3774.9,0.06365526]
[1717074456834,1.925,3775.1,3774.2,2.3448]
[1717074457005,1.925,3775.1,3774.1,7.38]
[1717074457006,1.925,3774.7,3774.1,7.38]
[1717074457344,2.64903,3775.0,3774.3,0.0638683]
[1717074457644,1.925,3774.4,3773.7,12.51469]
[1717074457947,0.925,3774.4,3773.7,12.51469]
[1717074458318,3.57448,3774.4,3773.7,7.38]
[1717074458931,1.925,3774.0,3773.7,7.38]
[1717074459505,1.29789222,3773.9,3773.0,12.36]
[1717074459701,1.925,3773.1,3772.9,7.38]
[1717074459948,1.925,3773.0,3772.4,15.01077]
[1717074460168,1.925,3773.0,3772.3,7.38]
[1717074460480,1.925,3773.0,3772.4,0.97372]
[1717074460617,2.64987,3773.8,3772.5,2.6507]
[1717074460966,1.925,3773.4,3772.5,2.6507]
[1717074461279,2.65024,3773.3,3772.6,0.06468143]
[1717074461619,3.94813222,3773.3,3772.3,7.38]
[1717074461960,3.94813222,3773.3,3772.7,0.06477882]
[1717074461961,2.65041,3773.0,3772.7,0.06477882]
[1717074462160,1.925,3772.6,3772.3,7.38]
[1717074462373,1.925,3772.6,3771.7,7.38]
[1717074462374,3.22289222,3772.6,3771.7,7.38]
[1717074462664,1.925,3771.8,3770.9,2.65185]
[1717074464845,1.925,3771.4,3770.9,2.65185]
[1717074465176,1.925,3771.8,3771.0,0.506865]
[1717074467143,1.925,3771.8,3771.1,2.65173]
[1717074468001,1.925,3771.8,3771.0,0.506865]
[1717074468144,1.925,3771.8,3770.7,2.4168]
[1717074471498,1.925,3771.4,3770.6,2.65202]
[1717074471647,1.925,3771.0,3770.2,2.65236]
[1717074471844,1.925,3770.6,3770.2,2.65236]
[1717074472155,1.925,3770.6,3770.2,0.494616]
[1717074472356,1.925,3770.6,3769.7,2.65267]
[1717074472942,2.65156,3771.4,3770.2,2.65237]
[1717074473179,1.925,3770.8,3770.2,2.65237]
[1717074474704,1.925,3770.8,3769.8,2.65263]
[1717074475500,1.925,3770.4,3769.8,2.65263]
[1717074475665,1.925,3770.0,3769.4,5.65291]
[1717074476078,1.925,3770.0,3769.5,0.06249226]
[1717074478683,1.925,3770.0,3769.0,2.65319]
[1717074478883,1.925,3770.0,3769.6,0.06319434]
[1717074479108,1.925,3770.0,3769.0,2.65319]
[1717074479293,1.925,3770.0,3769.7,0.06315874]
[1717074479494,1.925,3770.0,3769.0,2.65319]
[1717074479702,1.925,3770.0,3769.8,0.06312314]
[1717074479898,1.925,3770.0,3769.8,0.01312314]
[1717074480225,1.925,3770.0,3769.2,2.65303]
[1717074480226,1.925,3770.0,3769.9,0.06142088]
[1717074480432,1.925,3770.0,3769.2,2.65303]
[1717074480765,1.925,3770.0,3769.9,0.0614504]
[1717074481109,1.925,3770.0,3769.2,2.65303]
[1717074481319,6.28181283,3769.9,3768.7,3.06886343]
[1717074481465,1.925,3769.3,3768.6,12.36]
[1717074482309,2.65309,3769.2,3768.6,12.36]
[1717074482524,2.65309,3769.2,3768.3,2.65368]
[1717074482525,2.65309,3769.2,3768.3,10.03368]
[1717074482736,1.925,3768.7,3768.3,10.03368]
[1717074483732,1.925,3769.2,3768.3,10.03368]
[1717074483952,4.57782,3769.6,3768.6,2.65347]
[1717074484485,2.2909,3769.9,3768.6,2.65347]
[1717074484486,1.925,3769.2,3768.6,2.65347]
[1717074484726,1.925,3769.2,3768.3,7.38]
[1717074485038,1.925,3768.8,3768.3,7.38]
[1717074486803,2.4682,3772.0,3768.7,3.59769222]
[1717074487006,2.6514,3771.6,3770.2,2.65232]
[1717074487270,1.925,3771.1,3770.2,2.65232]
[1717074487427,1.925,3771.1,3770.3,0.06181503]
[1717074488312,1.925,3770.8,3770.3,0.06181503]
[1717074488620,1.925,3770.8,3769.1,2.2745]
[1717074488621,3.94988222,3770.8,3770.4,0.06177944]
[1717074488844,0.62777822,3770.7,3769.6,2.65276]
[1717074489010,0.62777822,3770.7,3769.1,2.2745]
[1717074489011,2.65165,3771.3,3770.0,2.65249]
[1717074489203,3.22289222,3771.2,3770.1,0.06188621]
[1717074489407,3.22289222,3771.2,3770.0,2.65249]
[1717074489408,3.0,3771.1,3770.0,2.65249]
[1717074489746,3.22289222,3771.2,3770.0,2.65249]
[1717074493924,3.22289222,3771.2,3770.3,2.65227]
[1717074494269,0.3530615,3771.9,3770.3,2.65227]
[1717074494270,1.925,3771.7,3771.0,2.65177]
[1717074494481,1.925,3772.0,3771.0,2.65177]
[1717074494763,1.29789222,3771.9,3771.1,0.06134098]
[1717074494965,0.56762922,3771.8,3771.1,0.06134098]
[1717074495823,0.56762922,3771.8,3771.2,2.65165]
[1717074496040,4.57585,3772.4,3771.5,2.65141]
[1717074496240,1.925,3772.4,3771.6,0.06101069]
[1717074496443,2.3141,3772.7,3771.6,0.06101069]
[1717074496642,1.29789222,3772.6,3771.5,2.65141]
[1717074496849,1.925,3772.8,3771.9,2.65116]
[1717074497023,0.457554,3772.7,3771.9,2.65116]
[1717074497228,0.457554,3772.7,3772.0,0.06081191]
[1717074497656,1.382554,3772.8,3772.0,0.06081191]
[1717074498572,2.65054,3772.9,3772.0,0.06081191]
[1717074498772,3.94843222,3772.9,3772.0,0.06081191]
[1717074499071,3.39484322,3772.8,3772.0,0.06081191]
[1717074499275,3.39484322,3772.8,3771.9,2.65116]
[1717074499464,0.39484322,3772.8,3771.9,2.65116]
[1717074499640,3.15531322,3773.2,3772.1,2.651]
[1717074499829,1.29789222,3773.1,3772.1,2.651]
[1717074500029,1.29789222,3773.1,3772.2,0.05983799]
[1717074501348,4.29789222,3773.1,3772.2,0.05983799]
[1717074501547,2.65042,3773.0,3772.2,0.05983799]
[1717074501792,2.65082,3772.5,3772.2,0.05983799]
[1717074501941,4.84789222,3772.4,3772.2,0.05983799]
[1717074502275,1.84789222,3772.4,3772.3,0.05972625]
[1717074502446,5.40013144,3772.4,3772.3,0.05972625]
[1717074502640,2.65133,3771.7,3771.5,7.38]
[1717074502872,2.65133,3771.7,3771.6,0.05804724]
[1717074503241,2.65133,3771.7,3770.8,2.65194]
[1717074503668,2.65133,3771.7,3770.9,0.0583675]
[1717074503868,0.265133,3771.6,3770.9,0.0583675]
[1717074506143,2.65104,3772.1,3771.0,2.65177]
[1717074506475,3.0,3772.0,3771.0,2.71010192]
[1717074508084,3.94893222,3772.1,3771.0,2.71010192]
[1717074510738,3.98423922,3772.4,3771.4,2.65152]
[1717074511253,3.98423922,3772.4,3771.5,0.05828928]
[1717074511666,3.98423922,3772.4,3771.6,2.65135]
[1717074511866,3.98423922,3772.4,3771.6,2.70960371]
[1717074513314,0.66350192,3772.3,3771.6,2.70960371]
[1717074516499,2.65099,3772.2,3771.6,0.05825371]
[1717074516857,2.65099,3772.2,3771.7,0.05821815]
[1717074517203,2.568,3772.8,3771.3,7.38]
[1717074517398,2.97831676,3772.7,3771.8,0.05818259]
[1717074517695,0.57362454,3772.6,3771.9,0.05814703]
[1717074517898,0.57362454,3772.6,3771.3,7.38]
[1717074517899,2.65099,3772.2,3771.3,7.38]
[1717074518109,2.65099,3772.2,3772.0,0.05811148]
[1717074518326,2.65119,3771.9,3771.3,7.38]
[1717074518460,2.65119,3771.9,3771.0,12.36]
[1717074518461,0.39490822,3771.8,3771.0,12.36]
[1717074518801,2.65164,3771.3,3771.0,12.36]
[1717074518998,2.65182,3771.0,3770.3,7.38]
[1717074519156,2.65182,3771.0,3770.2,2.65234]
[1717074520958,5.568,3771.8,3770.3,2.65225]
[1717074520959,2.65155,3771.4,3770.3,2.65225]
[1717074521167,2.65155,3771.4,3770.3,2.71096618]
[1717074521514,2.65155,3771.4,3770.3,3.2181528]
[1717074521998,2.65155,3771.4,3770.6,2.65208]
[1717074522203,5.6513,3771.8,3770.6,2.65208]
[1717074522429,4.87162828,3771.7,3770.7,0.05864515]
[1717074522563,1.05229283,3771.6,3770.7,0.05864515]
[1717074522964,0.57371377,3771.6,3770.9,2.65183]
[1717074523200,3.57371377,3772.3,3770.9,2.65183]
[1717074523514,1.87160599,3772.2,3771.0,0.05878674]
[1717074524061,2.65124,3771.9,3771.0,0.05878674]
[1717074524365,0.83883777,3771.8,3771.0,0.05878674]
[1717074525612,2.65124,3771.9,3771.1,2.65171]
[1717074525898,2.65124,3771.9,3771.2,0.05871559]
[1717074526626,1.927,3772.2,3771.2,0.05871559]
[1717074526762,0.57363727,3772.2,3771.4,2.65152]
[1717074526964,3.57363727,3772.4,3771.4,2.65152]
[1717074527283,1.688778,3772.3,3771.5,0.05849578]
[1717074527458,1.11514073,3772.3,3771.5,0.05849578]
[1717074527663,1.68875628,3772.3,3771.5,0.05849578]
[1717074528379,0.57361555,3772.3,3771.5,0.05849578]
[1717074528773,0.57361555,3772.3,3771.4,2.65152]
[1717074529508,0.57361555,3772.4,3771.4,2.65152]
[1717074529683,0.57361555,3772.4,3771.5,0.05849578]
[1717074530175,0.57361555,3772.4,3771.6,2.65138]
[1717074530382,0.57361555,3772.4,3771.7,0.2762899]
[1717074530587,2.65052,3772.9,3771.7,0.05842466]
[1717074530907,0.57354617,3772.8,3771.1,3.0]
[1717074531408,0.57354617,3772.8,3771.2,1.29789222]
[1717074531702,0.57354617,3772.8,3771.2,1.3564947]
[1717074531902,0.57354617,3772.8,3771.9,2.65114]
[1717074532331,0.57354617,3772.8,3772.0,0.05831798]
[1717074532332,2.50054617,3772.8,3772.0,0.05831798]
[1717074532487,2.65064,3772.7,3772.0,0.05831798]
[1717074532688,2.65064,3772.7,3771.5,2.65143]
[1717074533007,1.10710787,3772.6,3771.6,0.05822668]
[1717074533403,0.53355179,3772.6,3771.6,0.05822668]
[1717074533608,0.53355179,3772.6,3771.7,2.65131]
[1717074533827,2.65064,3772.7,3771.7,2.65131]
[1717074534133,2.65064,3772.7,3771.8,0.05815556]
[1717074535928,2.65064,3772.7,3771.9,2.65116]
[1717074536330,2.63770199,3772.7,3772.0,0.05808445]
[1717074540613,1.927,3772.8,3772.1,2.65102]
[1717074540935,1.927,3772.8,3772.2,0.05785602]
[1717074541725,4.5776,3772.8,3772.2,0.05785602]
[1717074541926,4.5776,3772.8,3771.7,2.65125]
[1717074542125,4.5776,3772.8,3772.3,0.05782047]
[1717074542450,4.5776,3772.8,3771.7,2.65125]
[1717074542735,4.5776,3772.8,3771.7,3.71070584]
[1717074542947,4.5776,3772.8,3771.8,0.05799824]
[1717074543101,5.87549222,3772.8,3771.8,0.05799824]
[1717074543298,2.65077,3772.5,3771.8,0.05799824]
[1717074543726,2.65098,3772.2,3771.5,7.38]
[1717074544037,2.65098,3772.2,3771.9,0.05796268]
[1717074544216,2.65098,3772.2,3771.5,7.38]
[1717074544412,2.65098,3772.2,3772.0,0.05792712]
[1717074544640,2.65098,3772.2,3771.3,2.65154]
[1717074544835,2.65119,3771.9,3771.1,7.38]
[1717074545071,2.65119,3771.9,3771.4,0.05829042]
[1717074545273,2.65119,3771.9,3771.1,7.38]
[1717074545741,2.65119,3771.9,3771.2,0.05836156]
[1717074546428,2.65119,3771.9,3771.2,2.71002156]
[1717074549344,3.12852494,3771.9,3771.2,2.71002156]
[1717074549699,2.65119,3771.9,3771.2,0.05836156]
[1717074557139,4.57796,3772.3,3771.2,0.05836156]
[1717074558024,4.57768,3772.7,3771.6,2.65137]
[1717074558225,0.57356237,3772.6,3771.9,2.65118]
[1717074558617,2.65068,3772.7,3772.0,0.05813115]
[1717074561218,0.26571163,3774.1,3772.2,2.65096]
[1717074561219,5.65015,3773.4,3772.2,2.65096]
[1717074561422,0.57352629,3773.3,3772.2,2.65096]
[1717074561606,0.57352629,3773.3,3772.4,2.6508]
[1717074561929,0.57352629,3773.3,3772.5,0.05786983]
[1717074562428,5.65015,3773.4,3772.5,0.05786983]
[1717074563132,5.65015,3773.4,3772.5,0.32873681]
[1717074564708,2.65015,3773.4,3772.5,0.32873681]
[1717074565008,2.65015,3773.4,3772.6,2.65065]
[1717074565450,2.65015,3773.4,3772.7,0.05779874]
[1717074569449,1.927,3773.6,3772.8,2.65053]
[1717074569811,2.64988,3773.8,3772.9,0.0574917]
[1717074570231,2.64988,3773.8,3772.9,0.04455369]
[1717074570430,2.64988,3773.8,3772.9,0.05691677]
[1717074571436,2.64988,3773.8,3773.0,2.65036]
[1717074571753,2.64988,3773.8,3773.1,0.32760891]
[1717074577359,4.57707,3773.5,3773.1,0.05688123]
[1717074577565,2.65025,3773.3,3772.7,7.38]
[1717074577731,2.65025,3773.3,3773.2,0.05678673]
[1717074578058,2.65025,3773.3,3772.7,7.38]
[1717074578259,2.65025,3773.3,3773.2,0.05678673]
[1717074578449,2.65025,3773.3,3772.7,7.38]
[1717074578643,2.65025,3773.3,3773.2,0.05678673]
[1717074578846,2.65025,3773.3,3772.7,7.38]
[1717074579049,2.65025,3773.3,3773.2,0.05678673]
[1717074579225,2.65025,3773.3,3772.7,7.38]
[1717074579418,2.65025,3773.3,3773.2,0.05678673]
[1717074579624,2.65025,3773.3,3772.7,7.38]
[1717074579850,2.65025,3773.3,3773.2,0.05678673]
[1717074580030,2.65025,3773.3,3772.7,7.38]
[1717074580236,2.65025,3773.3,3773.2,0.05678673]
[1717074580454,2.65025,3773.3,3772.7,7.38]
[1717074580662,2.65025,3773.3,3773.2,0.05678673]
[1717074580869,2.65025,3773.3,3772.7,7.38]
[1717074581078,2.65025,3773.3,3773.2,0.05678673]
[1717074581233,2.65025,3773.3,3772.7,7.38]
[1717074581435,2.65025,3773.3,3773.2,0.05678673]
[1717074581767,4.57698,3773.7,3773.2,0.05677443]
[1717074582277,4.57698,3773.7,3772.7,7.38]
[1717074582876,4.57698,3773.7,3772.8,0.05691658]
[1717074585735,2.64998,3773.7,3772.8,2.70745658]
[1717074585986,2.64998,3773.7,3772.9,3.26684566]
[1717074586339,2.64998,3773.7,3773.0,0.0568455]
[1717074587285,0.57338203,3773.6,3773.0,0.0568455]
[1717074588042,2.64998,3773.7,3773.0,0.0568455]
[1717074588243,0.57336872,3773.6,3773.0,0.0568455]
[1717074588445,0.57336872,3773.6,3773.0,1.39226862]
[1717074599335,0.57336872,3773.6,3773.0,0.0568455]
[1717074602640,0.57336872,3773.6,3773.1,2.65033]
[1717074602844,0.57336872,3773.9,3773.1,2.70698028]
[1717074604738,2.64986,3773.8,3773.1,2.70698028]
[1717074605559,2.65005,3773.6,3773.1,0.05665028]
[1717074605769,5.08408,3774.4,3773.1,0.05665028]
[1717074605770,4.3581,3773.2,3773.1,0.05665028]
[1717074605916,4.30249157,3773.2,3772.4,19.74]
[1717074606283,4.57776,3772.5,3771.7,7.38]
[1717074606587,2.651,3772.2,3771.7,7.38]
[1717074607155,2.65112,3772.0,3771.7,7.38]
[1717074607585,2.65014,3773.4,3771.7,7.38]
[1717074607745,1.927,3772.5,3771.7,7.38]
[1717074608082,3.22489222,3772.5,3771.7,7.38]
[1717074608241,1.927,3772.5,3771.7,7.38]
[1717074608449,2.65059,3772.8,3771.8,5.06084]
[1717074608450,0.57361935,3772.4,3771.8,5.06084]
[1717074608687,2.65059,3772.8,3771.8,5.06084]
[1717074608688,0.57361935,3772.7,3771.8,5.06084]
[1717074608981,2.65059,3772.8,3771.8,5.06084]
[1717074609178,1.927,3773.4,3772.2,2.65097]
[1717074609703,1.927,3773.4,3772.4,2.65079]
[1717074609888,1.927,3773.4,3772.6,2.65063]
[1717074610243,2.65003,3773.6,3772.6,2.65063]
[1717074611952,2.64973,3774.0,3773.0,2.369]
[1717074612287,2.64973,3774.0,3773.1,2.65033]
[1717074613573,2.64973,3774.0,3773.2,0.04911368]
[1717074615186,1.927,3773.4,3773.2,0.04911368]
[1717074615360,1.49059222,3773.3,3773.2,0.04911368]
[1717074615555,2.6503,3773.2,3772.1,7.38]
[1717074615811,1.927,3773.0,3772.1,7.38]
[1717074616116,3.22489222,3773.0,3772.2,0.04776988]
[1717074616267,3.88668144,3773.0,3772.2,0.04776988]
[1717074616469,2.58878922,3773.0,3772.2,0.04776988]
[1717074617357,1.927,3772.6,3772.2,0.04776988]
[1717074618060,2.65051,3772.9,3772.2,2.69872988]
[1717074618505,2.65051,3772.9,3772.2,0.04776988]
[1717074618804,4.57764,3772.7,3772.2,0.04776988]
[1717074619019,1.88544544,3772.6,3772.2,0.04776988]
[1717074619187,0.58755322,3772.6,3772.2,0.04776988]
[1717074619589,2.65038,3773.1,3772.2,0.04776988]
[1717074619811,2.3892,3773.6,3772.4,2.6508]
[1717074619812,0.57352404,3773.0,3772.4,2.6508]
[1717074620009,0.57343102,3773.5,3772.7,2.65059]
[1717074620324,1.927,3773.2,3772.7,2.65059]
[1717074620492,1.927,3773.2,3772.8,0.04755661]
[1717074622206,2.64981,3773.9,3772.8,0.04755661]
[1717074622418,3.5734296,3773.8,3772.7,2.65055]
[1717074622620,3.0,3773.8,3772.9,0.04752107]
[1717074622946,3.0,3773.8,3772.7,2.65055]
[1717074622947,3.62232396,3773.8,3772.8,0.04755661]
[1717074623237,3.62232396,3773.8,3772.9,0.04752107]
[1717074623534,3.62232396,3773.8,3772.6,7.38]
[1717074623535,2.64981,3773.9,3773.0,2.65039]
[1717074623824,2.64981,3773.9,3773.0,2.69787553]
[1717074629016,1.927,3774.2,3773.3,2.65018]
[1717074629358,1.927,3774.2,3773.4,0.09942875]
[1717074629661,0.457655,3774.1,3773.5,2.64999]
[1717074630010,0.457655,3774.1,3773.6,0.04636165]
[1717074630210,1.927,3774.2,3773.6,0.04636165]
[1717074631449,1.927,3774.2,3773.6,0.07358568]
[1717074631659,1.927,3774.2,3773.6,2.52418568]
[1717074632029,2.64955,3774.3,3773.6,2.52418568]
[1717074632226,1.927,3774.6,3773.7,2.64989]
[1717074632411,2.684625,3774.6,3773.7,2.72338516]
[1717074632813,1.927,3774.6,3773.7,2.72338516]
[1717074639272,2.649,3775.1,3774.0,2.6497]
[1717074639584,2.649,3775.1,3773.7,0.07349516]
[1717074639585,2.649,3775.1,3774.2,2.64955]
[1717074639743,2.649,3775.1,3774.3,2.2691]
[1717074639949,3.1066,3775.1,3774.4,0.0731216]
[1717074640145,1.927,3775.4,3774.4,0.0731216]
[1717074640349,1.927,3775.4,3774.6,2.64928]
[1717074640645,1.927,3775.4,3774.7,0.07301291]
[1717074642099,3.94672222,3775.3,3774.7,0.07301291]